{"text_format":"1","workbook":"xlsx","n_sheets":5,"sheets":["Forside","Serviceeftersyn","Reparationer og udskiftninger","Nye anlæg","Timepriser"],"not_rendered":{"charts":0,"images":1,"macros":1,"external_links":0,"defined_names":1,"comments":0,"pivot_tables":0},"unopened":[],"bounds":{"document_bytes":16777216,"sheet_cells":100000,"rows_first":2000,"rows_last":500,"rows_between":2000,"halvings":0,"cell_chars":16384,"cell_head_chars":4096},"cells_cut":0,"cells_raw":0,"read":"whole","date_system":"1900"}

{"sheet":"Forside","index":0,"n_rows":53,"n_cols":11,"rows_kept":53,"cut":false,"hidden":false,"merged":[[49,1,51,4],[40,1,41,8],[49,6,51,9],[43,2,43,8],[45,2,45,8],[1,1,2,10],[34,1,37,8],[28,1,31,8],[27,1,27,8],[33,1,33,8],[6,2,6,8],[8,2,8,8],[10,1,12,9],[19,1,19,6],[17,1,17,6],[15,1,15,8],[21,1,21,6],[23,1,23,6]]}
[null,"Tilbudsskema"]
[null,"UDBUD AF KONTRAKT OM SERVICE, VEDLIGEHOLD OG REPARATION AF BRANDTEKNISKE ANLÆG"]
[]
[]
[null,"Tilbudsgiver",null,null,null,null,null,null,null,null,"J.nr. 334842"]
[]
[null,"Navn:"]
[]
[null,"CVR-nr:"]
[]
[null,"Undertegnede tilbyder herved at levere den nedenfor anførte leverance i overensstemmelse med udbudsbetingelserne for service, vedligehold og reparation af Brandtekniske Anlæg, Kravspecifikationer og øvrige tilhørende bilag, dateret 23.09.2024"]
[]
[]
[]
[]
[null,"Delaftale 1"]
[]
[null,"Samlet tilbudssum for serviceeftersyn",null,null,null,null,null,"kr. ",{"$f":"Serviceeftersyn!I13","v":0}]
[]
[null,"Samlet tilbudssum for reparationer og udskiftninger af nuværende anlæg",null,null,null,null,null,"kr. ",{"$f":"'Reparationer og udskiftninger'!K71","v":0}]
[]
[null,"Samlet tilbudssum for nye anlæg",null,null,null,null,null,"kr. ",{"$f":"'Nye anlæg'!K58","v":0}]
[]
[null,"Samlet tilbuddssum for timepriser",null,null,null,null,null,"kr. ",{"$f":"Timepriser!G34","v":0}]
[]
[]
[]
[null,"Eventuelle Forbehold "]
[]
[]
[]
[]
[]
[null,"Andre afvigelser fra udbudsmaterialet"]
[]
[]
[]
[]
[]
[]
[null,"Undertegnede Tilbudsgiver tilbyder ovennævnte, og bekræfter, at der ikke er taget andre forbehold end de i dette skema nævnte."]
[]
[]
[null,"Sted:"]
[]
[null,"Dato:"]
[]
[]
[]
[]
[]
[]
[null,"Navn/Underskrift på tegningsberettiget:",null,null,null,null,"Firmastempel"]

{"sheet":"Serviceeftersyn","index":1,"n_rows":173,"n_cols":39,"rows_kept":173,"cut":false,"hidden":false,"merged":[[12,1,12,5],[1,0,1,5]]}
["Tilbudsskema"]
["UDBUD AF KONTRAKT OM SERVICE, VEDLIGEHOLD OG REPARATION AF BRANDTEKNISKE ANLÆG"]
[]
[null,null,null,null,null,null,null,null,"J.nr. 334842"]
[null,"Samlet pris for serviceeftersyn"]
[]
[null,"Samlet pris for serviceeftersyn af ikke-optalte Brandtekniske Anlæg",null,null,null,null,null,null,{"$f":"I24","v":0}]
[]
[null,"Samlet pris for årligt serviceeftersyn af optalte Brandtekniske Anlæg ",null,null,null,null,null,null,{"$f":"AL173","v":0}]
[]
[null,"Samlet pris pr. måned for månedligt eftersyn af optalte Brandtekniske Anlæg på oplistede ejendomme",null,null,null,null,null,null,{"$f":"AM172","v":0}]
[]
[null,"I alt - Samlet tilbudssum for serviceeftersyn (overføres til forsiden)",null,null,null,null,null,"kr. ",{"$f":"SUM(I7:I12)","v":0}]
[]
[]
[]
[null,"Service af ikke-optalte Brandtekniske Anlæg mv. inkl. alle udgifter som angivet i Udbudsbetingelser, pkt. 8.4.1",null,null,"Antal",null,"Pris pr stk"]
[null,"Service på ABDL-døre, hvor disse ikke er optalt i oversigterne",null,null,10,"stk",0,"kr.",{"$f":"E18*G18","v":0}]
[null,"Efterfølgende ABDL-døre på anlægget ",null,null,10,"stk",0,"kr.",{"$f":"E19*G19","v":0}]
[null,"Service af ABV (central, to udløsertryk samt en åbning) hvor disse ikke er optalt i oversigten",null,null,10,"stk",0,"kr.",0]
[null,"Efterfølgende service af 1 stk ABV åbning på anlægget ",null,null,10,"stk",0,"kr.",0]
[null,"Service af varslingsanlæg (dækker op til 100m2 inkl. fem tryk)",null,null,10,"stk",0,"kr.",0]
[null,"Service af varslingsanlæg inkl. talevarsling (dækker op til 100m2 inkl. fem tryk)",null,null,10,"stk",0,"kr.",0]
[null,"Samlet pris for serviceeftersyn af ikke-optalte anlæg",null,null,null,null,null,null,{"$f":"SUM(I18:I23)","v":0}]
[]
[]
[]
[null,"Service af optalte brandsikringsanlæg inkl. alle udgifter som angivet i Udbudsbetingelser, pkt. 8.4.1",null,null,null,"ABA anlæg med overførsel",null,null,null,null,null,null,null,null,null,null,null,null,null,null,null,null,null,null,null,"ABV anlæg",null,null,"AVA/IVA anlæg",null,null,null,"ABDL anlæg"]
[null,"Enhkode","Navn","Adresse","Postnr","Postby","ABA Central  type","Dækket  areal  M2","A-netnummer","Batteritype","Antal  batterier","Varsling  med  eksterne  sirener","Varsling  med  integrerede  sirener","Varsling  med  ekstern  tale","Varsling  med  integreret  tale","Brand  Tryk","Styringer  jf  Matrix","Antal  døre","ABDL Integreret","Eksterne  styringer","Flash","Sirener","OD/ MD","TD","Linje  termo","CMA","ABV udløsetryk","ABV åbning","Røg detektor ABV","AVA/IVA Central","AVA/IVA Lydgiver","AVA/IVA varslingstryk","AVA/IVA røg detektor","Brandør (stand alone)","ABDL Udløsningstryk","Røg detoktor ABDL","kr.","Pris årligt eftersyn","Pris pr måned for månedligt eftersyn"]
[null,"00.102","VANDTÅRNET                    ","HAVNEGADE 22                  ","6700","ESBJERG","Esser C/M",384,"06-11-01-2421","12V24Ah",2,"Nej","Ja","Nej","Nej",7,4,0,"Nej","Nej",1,7,20,0,0,"nej",0,0,0,0,0,0,0,0,0,0,"kr.",0,0]
[null,"00.103","ESBJERG DAGHØJSKOLE-ØSTBO","EXNERSGADE 4-6",6700,"ESBJERG",null,null,null,null,null,null,null,null,null,null,null,null,null,null,null,null,null,null,null,"nej",0,0,0,0,0,0,0,7,7,10,"kr.",0,0]
[null,"00.111","ESBJERG KUNSTPAVILLON","HAVNEGADE 20","6700","ESBJERG","Delta Apollo",2307,"06-11-01-4727","12V7,2Ah",2,"Ja","Nej","Nej","Nej",21,7,5,"Ja","Ja",1,0,54,34,0,"nej",0,0,0,0,0,0,0,0,0,0,"kr.",0,0]
[null,"00.138","VANDRERHJEMMET","GL. VARDEVEJ 80","6700","ESBJERG","Delta Esser Compact",3680,"CSL00-727164","12V7,2Ah",4,"Ja","Nej","Nej","Ja",32,6,5,"Ja","Ja",1,80,145,36,0,"nej",0,0,0,0,0,0,0,0,0,0,"kr.",0,0]
[null,"00.139","ESBJERG KULTURSKOLE","ISLANDSGADE 50","6701","ESBJERG","Esmi FX",3200,"CSL00-748381","12V12Ah",4,"Ja","Nej","Nej","Nej",18,5,5,"Ja","Ja",1,0,120,4,0,"nej",0,0,0,0,0,0,0,0,0,0,"kr.",0,0]
[null,"00.202","MØDESTEDET","SKOLEGADE 10",6740,"BRAMMING",null,null,null,null,null,null,null,null,null,null,null,null,null,null,null,null,null,null,null,"nej",0,0,0,0,0,0,0,5,0,8,"kr.",0,0]
[null,"01.106","Esbjerg Affaldshåndtering EAH hal 7","Mådevej","6705","ESBJERG Ø","Esser C/M",1231,"06-52-01-0350","12V12Ah",2,"Nej","Ja","Nej","Nej",2,4,0,"Nej","Ja",1,2,26,0,0,"nej",0,0,0,0,0,0,0,0,0,0,"kr.",0,0]
[null,"01.115","EL-BUS DEPOT","KATTEGATVEJ 10","6705","ESBJERG Ø","Esser C/M",1150,"CSL00-734527","12V12Ah",2,"Nej","Ja","Nej","Nej",8,5,0,"Nej","Ja",1,38,36,0,2,"nej",0,0,0,0,0,0,0,0,0,0,"kr.",0,0]
[null,"03.002","BOLDESAGER SKOLE","NØRREBROGADE 100",6700,"ESBJERG",null,null,null,null,null,null,null,null,null,null,null,null,null,null,null,null,null,null,null,"Ja",2,24,0,1,25,27,13,29,0,56,"kr.",0,0]
[null,"03.003","DANMARKSGADES SKOLE","DANMARKSGADE 53",6700,"ESBJERG",null,null,null,null,null,null,null,null,null,null,null,null,null,null,null,null,null,null,null,"Ja",0,0,0,1,22,19,7,12,8,17,"kr.",0,0]
[null,"03.005","RENDBJERG FERIEKOLONI         ","RENDBJERGVEJ 12               ","6320","EGERNSUND","Esser C/M",800,"09-51-01-0606","12V12Ah",2,"Nej","Ja","Nej","Nej",5,6,0,"Nej","Nej",1,39,46,0,0,"nej",0,0,0,0,0,0,0,0,0,0,"kr.",0,0]
[null,"03.006","SØNDERHO FERIEKOLONI*","LANDEVEJEN 69","6720","FANØ","Esser C/M",932,"06-51-01-0953","12V24Ah",2,"Ja","Nej","Nej","Nej",12,5,2,"Ja","Ja",1,6,77,7,0,"nej",0,0,0,0,0,0,0,0,0,0,"kr.",0,0]
[null,"03.008","GAMMELBY FRITIDSCENTER","DARUMVEJ 110-112",6700,"ESBJERG",null,null,null,null,null,null,null,null,null,null,null,null,null,null,null,null,null,null,null,"nej",8,0,23,1,6,0,0,3,1,6,"kr.",0,0]
[null,"03.011","RØRKJÆRSKOLE","RINGEN 61-63",6700,"ESBJERG",null,null,null,null,null,null,null,null,null,null,null,null,null,null,null,null,null,null,null,"Ja",1,2,0,1,13,22,25,0,13,0,"kr.",0,0]
[null,"03.017","TJÆREBORG SKOLE","TJÆREBORG STATIONSVEJ",6731,"TJÆREBORG",null,null,null,null,null,null,null,null,null,null,null,null,null,null,null,null,null,null,null,"Ja",3,5,0,2,27,25,6,14,21,26,"kr.",0,0]
[null,"03.024","SPANGSBJERGSKOLEN","SKRÆNTEN 120","6700","ESBJERG","Delta Esser Compact",11485,"CSL00-748282","12V12Ah",6,"Ja","Ja","Nej","Nej",28,16,7,"Ja","Ja",1,140,216,1,0,"Ja",1,16,0,1,0,3,0,0,7,0,"kr.",0,0]
[null,"03.026","PRÆSTEGÅRDSSKOLEN","SØNDERVANGEN 18               ","6700","ESBJERG","Esser C/M",2400,"CSL00-421667","12V12Ah",2,"Ja","Ja","Nej","Nej",20,31,19,"Ja","Ja",1,28,52,0,0,"Ja",1,2,1,1,26,3,4,0,7,0,"kr.",0,0]
[null,"03.027","SKANDERBORGVEJ 10","SKANDERBORGVEJ 10",6700,"ESBJERG",null,null,null,null,null,null,null,null,null,null,null,null,null,null,null,null,null,null,null,"nej",0,0,0,0,1,1,0,0,0,0,"kr.",0,0]
[null,"03.029","BAKKESKOLEN","SKOLEBAKKEN 166-170           ","6705","ESBJERG Ø","Esser C/M",700,"CSL00-751202","12V12Ah",2,"Ja","Ja","Nej","Nej",9,8,3,"Ja","Nej",1,23,47,0,0,"Ja",2,8,0,0,0,2,0,0,0,0,"kr.",0,0]
[null,"03.031","SKADS SKOLE","ANDRUP BYVEJ 79-81","6705","ESBJERG Ø","Esser C/M",2312,"CSL00-938262","12V26AH",2,"Nej","Ja","Ja","Nej",17,21,1,"Ja","Ja",1,2,77,7,0,"Ja",2,19,0,2,108,18,0,0,5,10,"kr.",0,0]
[null,"03.032","KVAGLUNDSKOLEN","ASKEKRATTET 8",6705,"ESBJERG Ø",null,null,null,null,null,null,null,null,null,null,null,null,null,null,null,null,null,null,null,"Ja",1,10,8,1,9,4,0,0,0,4,"kr.",0,0]
[null,"03.037","BRYNDUM SKOLE","BRYNDUMVEJ 14-16",6715,"ESBJERG N",null,null,null,null,null,null,null,null,null,null,null,null,null,null,null,null,null,null,null,"nej",5,17,0,2,14,21,24,2,10,4,"kr.",0,0]
[null,"03.038","JOBAKTIV CSV","STOKBROVEJ 16                 ","6715","ESBJERG N","Delta Esser Compact",2100,"CSL00-748841","12V7,2Ah",2,"Ja","Ja","Nej","Nej",22,11,6,"Ja","Nej",1,11,113,21,2,"nej",0,0,0,0,0,0,0,0,6,0,"kr.",0,0]
[null,"03.045","FOURFELDTSKOLEN","NDR. FOVRFELDVEJ 1",6710,"ESBJERG V",null,null,null,null,null,null,null,null,null,null,null,null,null,null,null,null,null,null,null,"Ja",2,19,0,1,64,18,0,1,4,10,"kr.",0,0]
[null,"03.046","VITASKOLEN","VESTER GJESINGVEJ 28          ","6715","ESBJERG N","Esser C/M",3394,"06-11-06-0301","12V12Ah",2,"Nej","Nej","Nej","Nej",20,21,6,"Ja","Ja",1,72,93,0,1,"Ja",3,6,2,0,0,2,0,11,6,22,"kr.",0,0]
[null,"03.047","HJERTING SKOLE","GL. GULDAGERVEJ 53",6710,"ESBJERG V",null,null,null,null,null,null,null,null,null,null,null,null,null,null,null,null,null,null,null,"Ja",1,1,0,1,56,30,0,22,0,35,"kr.",0,0]
[null,"03.048","ÅDALSKOEN","ÅMOSEPARKEN 252",6710,"ESBJERG V",null,null,null,null,null,null,null,null,null,null,null,null,null,null,null,null,null,null,null,"nej",1,2,2,1,9,10,0,4,0,8,"kr.",0,0]
[null,"03.053","ESBJERG MUSEUM                ","TORVEGADE 45","6700","ESBJERG","Esser C/M",5298,"06-11-01-1210","12V24Ah",2,"Nej","Ja","Nej","Nej",14,7,4,"Ja","Ja",1,28,168,6,0,"nej",1,2,0,0,0,0,0,0,3,0,"kr.",0,0]
[null,"03.057","STUDIE 10 ESBJERG","GRØNLANDSPARKEN 300",6715,"ESBJERG N",null,null,null,null,null,null,null,null,null,null,null,null,null,null,null,null,null,null,null,"Ja",1,20,0,1,6,3,0,4,0,8,"kr.",0,0]
[null,"03.059","NORDVANGSKOLEN ","HJERTINGPARKEN 202",6710,"ESBJERG V",null,null,null,null,null,null,null,null,null,null,null,5,"Ja",null,null,null,null,null,null,"Ja",0,0,0,1,21,12,10,0,0,0,"kr.",0,0]
[null,"03.064","SØNDERRISSKOLEN","KREBSENS KVARTER 58",6710,"ESBJERG V",null,null,null,null,null,null,null,null,null,null,null,null,null,null,null,null,null,null,null,"Ja",0,0,0,1,0,3,0,5,0,10,"kr.",0,0]
[null,"03.068","FRITIDSHUSET","KIRKEGADE 51-53",6700,"ESBJERG ",null,null,null,null,null,null,null,null,null,null,null,null,null,null,null,null,null,null,null,"nej",0,0,0,0,0,6,0,9,0,10,"kr.",0,0]
[null,"03.070","ESBJERG KRISECENTER ","BORGERGADE 6","6700","ESBJERG","MX4000",320,"06-52-01-0324","12V18Ah",2,"Nej","Nej","Nej","Nej",1,8,7,"Ja","Ja",1,4,26,0,0,"nej",0,0,0,0,0,0,0,0,0,0,"kr.",0,0]
[null,"03.078","BYHISTORISK ARKIV             ","TORVEGADE 47                  ","6700","ESBJERG","Esser C/M",2250,"CSL00-748329","12V12Ah",2,"Nej","Ja","Nej","Nej",19,5,4,"Ja","Ja",1,1,88,0,0,"nej",0,0,0,0,0,0,0,0,0,0,"kr.",0,0]
[null,"03.080","HOVEDBIBLIOTEKET","NØRREGADE 19",6700,"ESBJERG",null,null,null,null,null,null,null,null,null,null,null,null,null,null,null,null,null,null,null,"nej",9,58,0,2,67,13,0,20,0,37,"kr.",0,0]
[null,"03.103","RAVNSBJERGGÅRD AURA","SATURNVÆGET 12",6710,"ESBJERG V",null,null,null,null,null,null,null,null,null,null,null,null,null,null,null,null,null,null,null,"Ja",0,2,0,1,0,3,0,3,0,6,"kr.",0,0]
[null,"03.119","MYRTHUEGÅRD","MYRTUEVEJ 39",6710,"ESBJERG V",null,null,null,null,null,null,null,null,null,null,null,null,null,null,null,null,null,null,null,"nej",1,6,0,0,0,0,0,7,0,14,"kr.",0,0]
[null,"03.122","FISKERI- OG SØFARTSMUSEET","TARPHAGEVEJ 2- 6","6710","ESBJERG V","Esser FlexEs",6977,"06-11-08-0910","12V24Ah",2,"Ja","Nej","Nej","Ja",36,21,20,"Ja","Nej",1,33,243,16,0,"nej",4,11,0,0,0,1,0,0,17,0,"kr.",0,0]
[null,"03.135","RØRKJÆRHALLEN","RINGEN 40-42",6700,"ESBJERG",null,null,null,null,null,null,null,null,null,null,null,null,null,null,null,null,null,null,null,"nej",1,6,0,0,0,0,0,1,0,2,"kr.",0,0]
[null,"03.143","SØNDERRISHALLEN","KREBSENS KVARTER 70-72",6710,"ESBJERG V",null,null,null,null,null,null,null,null,null,null,null,null,null,null,null,null,null,null,null,"nej",1,7,2,0,0,0,0,0,0,0,"kr.",0,0]
[null,"03.153","BAKKEVEJENS SKOLE","BAKKEVEJ 2",6740,"BRAMMING",null,null,null,null,null,null,null,null,null,null,null,null,null,null,null,null,null,null,null,"Ja",1,8,0,1,17,21,1,6,5,24,"kr.",0,0]
[null,"03.154","NORDRE SKOLE","GABELSVEJ 8",6740,"BRAMMING",null,null,null,null,null,null,null,null,null,null,null,null,null,null,null,null,null,null,null,"Ja",0,0,0,3,10,19,0,15,7,32,"kr.",0,0]
[null,"03.155","GØRDING SKOLE","SKOLEGADE 16",6690,"GØRDING",null,null,null,null,null,null,null,null,null,null,null,null,null,null,null,null,null,null,null,"Ja",1,2,0,2,34,19,20,11,3,16,"kr.",0,0]
[null,"03.156","VEJRUP SKOLE","SKOLEVÆNGET 3, VEJRUP",6740,"BRAMMING",null,null,null,null,null,null,null,null,null,null,null,null,null,null,null,null,null,null,null,"ja",0,0,0,1,10,3,0,9,4,18,"kr.",0,0]
[null,"03.157","DARUM BØRNEBY","NØRREBYVEJ 12A ST. DARUM",6740,"BRAMMING",null,null,null,null,null,null,null,null,null,null,null,null,null,null,null,null,null,null,null,"Ja",0,0,0,1,9,3,0,6,0,13,"kr.",0,0]
[null,"03.159","STUDIE10 BRAMMING UNGDOMSSKOLEN ESBJERG","BAKKEVEJ 9",6740,"BRAMMING",null,null,null,null,null,null,null,null,null,null,null,null,null,null,null,null,null,null,null,"Nej",0,0,0,1,12,7,0,0,0,0,"kr.",0,0]
[null,"03.173","GREDSTEDBRO SKOLE","KONGEÅVEJ 17",6771,"GREDSTEDBRO",null,null,null,null,null,null,null,null,null,null,null,null,null,null,null,null,null,null,null,"Ja",0,0,0,1,13,12,0,1,1,2,"kr.",0,0]
[null,"03.179","ANSGARSKOLEN","SEMINARIEVEJ 15","6760","RIBE","Esser C/M",8200,"CSL00-658320","12V24Ah",2,"Nej","Ja","Ja","Nej",51,26,12,"Ja","Ja",1,162,273,22,0,"ja",1,2,0,1,0,2,0,3,14,6,"kr.",0,0]
[null,"03.180","EGEBÆK-HVIDING SKOLE ","Egebækvej 28","6760","RIBE","Esser C/M",3360,"CSL00-941732","12V26Ah",2,"Nej","Ja","Nej","Nej",14,9,5,"Ja","Ja",1,19,29,0,0,"Ja",0,0,0,0,0,3,0,0,4,0,"kr.",0,0]
[null,"03.181","VITTENBERGSKOLEN","HAULUNDVEJ 3",6760,"RIBE",null,null,null,null,null,null,null,null,null,null,null,null,null,null,null,null,null,null,null,"Ja",0,0,0,1,30,7,52,0,0,0,"kr.",0,0]
[null,"03.191","EGEKRATSKOLEN","SKOVBRYNET 2, GRIMSTRUP",6818,"ÅRRE",null,null,null,null,null,null,null,null,null,null,null,null,null,null,null,null,null,null,null,"Ja",0,2,1,1,4,3,0,0,0,5,"kr.",0,0]
[null,"03.202","MUSEET RIBES VIKINGER","ODINS PLADS 1","6760","RIBE","Esser C/M",2619,"CSL00-712927","12V26Ah",2,"Nej","Nej","Nej","Nej",15,6,2,"Ja","Ja",1,3,72,44,1,"nej",0,0,0,0,0,0,0,4,0,0,"kr.",0,0]
[null,"03.207","IDRÆTS- OG KULTURHUS ROAGER","LI. ROAGERVEJ 1B",6760,"RIBE",null,null,null,null,null,null,null,null,null,null,null,null,null,null,null,null,null,null,null,"nej",1,10,2,0,0,0,0,0,0,0,"kr.",0,0]
[null,"03.215","VADEHAVSCENTRET","OKHOLMVEJ 5 V. VEDSTED","6760","RIBE","Esser C/M",2540,"06-52-01-0642","12V26Ah",2,"Nej","Ja","Ja","Nej",26,19,5,"Ja","Nej",1,46,111,9,0,"nej",3,19,14,0,0,0,0,0,0,0,"kr.",0,0]
[null,"03.219","STREET MEKKA ","NØRREBROGADE 1C","6700","ESBJERG",null,null,null,"",null,null,null,null,null,null,null,null,null,null,null,null,null,null,null,"nej",3,19,14,0,0,0,0,0,0,0,"kr.",0,0]
[null,"03.223","DET MARITIME CENTER","ESBJERG STRAND 10","6700","ESBJERG","Esser C/M",2800,"CSL00-421106","12V24Ah",2,"Nej","Ja","Nej","Nej",19,15,5,"Ja","Nej",1,70,93,10,0,"nej",0,0,0,0,0,0,0,0,0,0,"kr.",0,0]
[null,"05.026","SPECIALCENTER KROHAVEN","BRYNDUMVEJ 12, TARP           ","6715","ESBJERG N","Esser C/M",2134,"CSL00-750333","12V12Ah",2,"Ja","Nej","Nej","Nej",8,18,7,"Ja","Ja",1,0,79,21,0,"nej",0,0,0,0,0,0,0,0,0,0,"kr.",0,0]
[null,"05.027","BØRNEHUSET VED HAVET","TARPHAGEVEJ 20                ","6710","ESBJERG V","Esser C/M",503,"CSL00-940216","12V12Ah",2,"Nej","Ja","Nej","Nej",2,5,0,"Nej","Ja",1,4,21,2,1,"nej",0,0,0,0,0,0,0,0,0,0,"kr.",0,0]
[null,"05.030","LOKALCENTER STRANDGÅRDEN      ","HJERTING STRANDVEJ 70         ","6710","ESBJERG V","Delta Apollo",2043,"06-11-01-1436","12V12Ah",2,"Nej","Ja","Nej","Nej",13,12,10,"Ja","Ja",1,0,98,22,0,"nej",0,0,0,0,0,0,0,0,0,0,"kr.",0,0]
[null,"05.032","PLEJEHJEMMET HEDELUND         ","SPANGSBJERG MØLLEVEJ 316      ","6705","ESBJERG Ø","Delta Quad",1343,"CSL00-939977","12V12Ah",2,"Ja","Nej","Nej","Nej",7,4,2,"Ja","Nej",1,4,28,21,0,"nej",0,0,0,0,0,0,0,0,0,0,"kr.",0,0]
[null,"05.032","PLEJEHJEMMET HEDELUND         ","SPANGSBJERG MØLLEVEJ 316      ","6705","ESBJERG Ø","Esser FlexEs",15950,"CSL00-940079","12V25Ah",4,"Nej","Nej","Nej","Nej",44,23,18,"Ja","Nej",1,0,609,112,0,"nej",9,3,0,0,0,0,0,0,13,0,"kr.",0,0]
[null,"05.034","FOURFELD BØRNEHUS","NORDDALSPARKEN 34",6710,"ESBJERG V","Esser C/M",1331,"CSL00-763034","12v24Ah",2,"Nej","Ja","Nej","Nej",10,18,16,"Ja","Ja",1,71,75,4,1,"nej",0,0,0,0,0,0,0,0,0,0,"kr.",0,0]
[null,"05.067","BØRNEHUSET BØNDERGÅRDSVEJ","BØNDERGÅRDSVEJ 2-4              ","6700","ESBJERG","Esser C/M",1462,"DLK-0010-0037","12V24Ah",2,"Nej","Ja","Nej","Nej",12,18,14,"Ja","Ja",1,32,56,0,0,"nej",0,0,0,0,0,0,0,0,0,0,"kr.",0,0]
[null,"05.068","PLEJEHJEMMET STRANDBY ","SPANGSBJERGGADE 28-30         ","6700","ESBJERG","Esser C/M",7661,"06-11-06-0362","12V24Ah",2,"Nej","Ja","Nej","Nej",13,25,30,"Ja","Ja",1,7,271,2,0,"nej",0,0,0,0,0,0,0,0,0,0,"kr.",0,0]
[null,"05.084","SPIREN BRYNDUMVEJ","BRYNDUMVEJ 20                 ","6715","ESBJERG N","Esser C/M",454,"CSL00-792467","12v 24Ah",2,"Nej","Ja","Nej","Nej",9,9,4,"Ja","Ja",1,24,29,1,1,"Ja",0,0,0,0,0,0,0,0,0,0,"kr.",0,0]
[null,"05.092","SUNDHEDSCENTER HØJVANG         ","SPANGSBJERG KIRKEVEJ 51       ","6700","ESBJERG","Terra Fire",6105,"CSL00-541747","12V17Ah",2,"Nej","Nej","Nej","Nej",31,14,7,"Ja","Ja",1,0,160,259,0,"nej",1,15,0,0,0,0,0,9,19,18,"kr.",0,0]
[null,"05.094","ÅDALENS BØRNEHUS","ÅMOSEVÆNGET 135               ","6710","ESBJERG V","Esser C/M",1500,"CSL00-728595",null,null,null,null,null,null,null,null,null,null,null,null,null,null,null,null,"Ja",0,0,0,0,0,0,0,0,0,0,"kr.",0,0]
[null,"05.104","ESBJERG BØRNEGÅRD ","ENGLANDSGADE 6                ","6700","ESBJERG","Esser C/M",908,"CSL00-770782","12V24Ah",2,"Nej","Ja","Nej","Ja",2,8,3,"Ja","Ja",1,40,48,0,0,"nej",0,0,0,0,0,0,0,0,0,0,"kr.",0,0]
[null,"05.136","REGNBUEN STJERNESKUDDET GALAKSEN ","KREBSENS KVARTER 60        ","6710","ESBJERG V","Esser C/M",600,"06-52-01-0335","12V12Ah",2,"Nej","Ja","Nej","Nej",4,7,2,"Ja","Nej",1,4,29,1,0,"nej",0,0,0,0,0,0,0,1,2,2,"kr.",0,0]
[null,"05.150","PLEJEHJEMMET ØSTERBYEN","RIBEGADE 169 A",6700,"ESBJERG",null,null,null,null,null,null,null,null,null,null,null,null,null,null,null,null,null,null,null,"nej",2,16,0,0,0,0,0,7,0,8,"kr.",0,0]
[null,"05.151","HØJVANGSHAVEN","HØJVANGSHAVEN 9               ","6700","ESBJERG","Nittan",1119,"CSL00-541814","12V17Ah",2,"Ja","Nej","Nej","Nej",19,5,4,"Ja","Ja",1,0,45,11,0,"nej",0,0,0,0,0,0,0,0,1,0,"kr.",0,0]
[null,"05.171","VALMUEN, STENGÅRDSVEJ","STENGÅRDSVEJ 150",6705,"ESBJERG Ø",null,null,null,null,null,null,null,null,null,null,null,null,null,null,null,null,null,null,null,"nej",0,0,0,1,1,0,5,0,0,0,"kr.",0,0]
[null,"05.193","BØRNEHUSET GULDAGER","JACOB SØRENSENS VEJ 1","6710","ESBJERG V","Esser C/M",641,"CSL00-777508","12v 24Ah",2,"Nej","ja","Nej","Nej",4,5,2,"Ja","Ja",1,44,61,0,0,"nej",0,0,0,0,0,0,0,0,0,0,"kr.",0,0]
[null,"05.207","FARVELADEN DET BLÅ HUS ","ØSTPARKEN 43, GØRDING","6690","GØRDING","Esser C/M",317,"CSL00-254743","12V7,2Ah",2,"Nej","Ja","Nej","Nej",1,4,1,"Ja","Nej",1,2,28,0,0,"nej",0,0,0,0,0,0,0,0,0,0,"kr.",0,0]
[null,"05.213","SNURRETOPPEN","SKOLEVÆNGET 1, VEJRUP","6740","BRAMMING","Esser IQ8",390,"CSL00-939864","12V12Ah",2,"Nej","Ja","Nej","Nej",9,1,0,"Nej","Nej",1,31,31,0,0,"nej",0,0,0,0,0,0,0,0,0,0,"kr.",0,0]
[null,"05.220","BØRNEHUS SYD BØRNEBO","HAREVEJ 10, EGEBÆK-HVIDING","6760","RIBE","Esser C/M",801,"CSL00-437320","12V12Ah",2,"Nej","Ja","Nej","Nej",8,7,0,"Nej","Ja",1,33,33,1,1,"nej",0,0,0,0,0,0,0,0,0,0,"kr.",0,0]
[null,"05.221","BØRNEGÅRDEN, GREDSTEDBRO","BLOMSTERGANGEN 71, GREDSTEDBRO","6771","GREDSTEDBRO","Delta Esser Compact",393,"CSL00-728790","12V20Ah",2,"Ja","Ja","Nej","Nej",3,9,2,"Ja","Ja",1,9,24,0,0,"nej",0,0,0,0,0,0,0,0,0,0,"kr.",0,0]
[null,"05.226","EGEKNOPPEN, GRIMSTRUP ","EGEDALVEJ 7A-B-C og 9, GRIMSTRUP","6818","ÅRRE","Esser C/M",780,"CSL00-749574","12V12Ah",2,"Nej","Nej","Nej","Ja",10,5,0,"Nej","Ja",1,22,36,0,1,"nej",0,0,0,0,0,0,0,0,0,0,"kr.",0,0]
[null,"05.235","FINSENSGADE 42","FINSENSGADE 42","6700","ESBJERG","Esser C/M",412,"CSL00-939487","12V12Ah",2,"Nej","Ja","Nej","Ja",8,2,0,"Nej","Ja",1,8,46,6,0,"nej",1,2,0,0,0,0,0,0,1,0,"kr.",0,0]
[null,"05.238","SYDSTJERNEN","MOSEVEJ 80","6760","RIBE","Esser C/M",1030,"CSL00-501439","12V12Ah",2,"Ja","Nej","Nej","Nej",2,11,2,"Ja","Ja",2,55,62,12,0,"nej",0,0,0,0,0,0,0,0,0,0,"kr.",0,0]
[null,"05.240","SPECIALCENTER RABU 7-9-11","BØGE ALLE 7-9-11","6760","RIBE","Esser C/M",2470,"CSL00-941925","12V24Ah",2,"Nej","Ja","Nej","Nej",25,9,9,"Ja","Ja",1,14,174,36,0,"nej",0,0,0,0,0,0,0,0,0,0,"kr.",0,0]
[null,"05.241","GAMMELBY STRANDVEJ 2","GAMMELBY STRANDVEJ 2","6700","ESBJERG","Esser C/M",414,"CSL00-726560","12V7,2Ah",2,"Ja","Ja","Nej","Nej",0,3,0,"Nej","Nej",1,3,30,2,0,"nej",0,0,0,0,0,0,0,0,0,0,"kr.",0,0]
[null,"05.243","CMU_FORSORGSHJEMMET ESBJERG","EXNERSGADE 47","6700","ESBJERG","Delta Esser Compact",2763,"CSL00-770270","12V17Ah",4,"Ja","Ja","Nej","Nej",15,5,1,"Ja","Nej",1,51,116,14,0,"nej",1,2,0,0,0,0,0,0,1,0,"kr.",0,0]
[null,"05.246","SOCIALT REHAB. BIRKEVANGEN","GRØNNINGEN 2","6740","BRAMMING","Esser C/M",4600,"CSL00-941068","12V12Ah",2,"Ja","Ja","Nej","Nej",14,14,13,"Ja","Ja",1,53,236,19,0,"nej",1,1,0,0,0,0,0,2,9,4,"kr.",0,0]
[null,"05.248","BOINSTITUTIONEN ULVEVEJ ","ULVEVEJ 65","6715","ESBJERG N","Delta Apollo",730,"CSL00-748364","12V12Ah",2,"Ja","Nej","Nej","Nej",7,4,2,"Ja","Nej",1,0,21,32,0,"nej",0,0,0,0,0,0,0,2,0,4,"kr.",0,0]
[null,"05.249","UV_UNGEINSTITUTIONEN HASSELHUSET","BØGE ALLE 10","6760","RIBE","Delta Quad",null,"CSL00-939510","12V7,2Ah",2,"Ja","Nej","Nej","Nej",10,4,1,"Ja","Ja",1,0,32,17,0,"nej",0,0,0,0,0,0,0,0,0,0,"kr.",0,0]
[null,"05.269","UV_FARUPVEJ 8 A ","FARUPVEJ 8 A ","6760","RIBE","Esser C/M",682,"CSL00-937486","12V12Ah",2,"Nej","Nej","Nej","Nej",2,4,1,"Ja","Ja",2,0,39,6,1,"nej",0,0,0,0,0,0,0,0,0,0,"kr.",0,0]
[null,"05.273","UV_FARUPVEJ 8 E","FARUPVEJ 8 E","6760","RIBE","Siemens Cerberus Algorex CI1149",1480,"06-11-08-0639",null,null,"Ja","Nej","Nej","Nej",null,null,null,"Ja","Ja",null,null,null,null,null,"nej",0,0,0,0,0,0,0,0,0,0,"kr.",0,0]
[null,"05.275","Ribel. Åmosen-Døgninst. Åmosepark 71","Åmoseparken 71","6710","ESBJERG V","MX4000",1300,"06-11-06-0637","12V7,2Ah",2,"Nej","Ja","Nej","Nej",4,16,15,"Ja","Nej",1,0,53,14,0,"nej",0,0,0,0,0,0,0,0,0,0,"kr.",0,0]
[null,"05.276","SNEDKERVÆRKSTEDET (DRIFT & TEKNIK)","BØGE ALLE 6, RIBELUND","6760","RIBE","Siemens Cerberus Algo Rex, Algopilot CS1115",11610,"06-11-08-0638","",null,"Ja","Nej","Nej","Nej",null,null,null,"Nej","Nej",null,null,null,null,null,"nej",0,0,0,0,0,0,0,0,0,0,"kr.",0,0]
[null,"05.279","UV_PILE ALLE 8","PILE ALLE 8, RIBELUND","6760","RIBE","Delta Esser Compact",null,"CSL00-521556","12V12Ah",2,"Nej","Ja","Nej","Nej",5,3,0,"Nej","Nej",1,7,25,8,0,"nej",0,0,0,0,0,0,0,0,0,0,"kr.",0,0]
[null,"05.280","SPECIALBHV. KORNVANGEN","KORNVANGEN 9E","6705","ESBJERG Ø","Esser C/M",965,"CSL00-460512","12V24Ah",2,"Nej","Ja","Nej","Nej",9,15,9,"Ja","Ja",1,56,62,1,0,"nej",0,0,0,0,0,0,0,0,0,0,"kr.",0,0]
[null,"05.282","JOBAKTIV","ENERGIVEJ 1-5",6700,"ESBJERG",null,null,null,null,null,null,null,null,null,null,null,null,null,null,null,null,null,null,null,"nej",0,0,0,1,1,0,18,1,0,2,"kr.",0,0]
[null,"05.283","UV_AKTIVITETEN PILE ALLE 6","PILE ALLE 6","6760","RIBE","Esser C/M",543,"CSL00-728273","12V12Ah",2,"Nej","Ja","Nej","Ja",2,7,4,"Ja","Nej",1,4,10,2,0,"nej",0,0,0,0,0,0,0,0,0,0,"kr.",0,0]
[null,"05.289","UV_DAGCENTERET ÅMOSEN","ÅMOSEPARKEN 81",6710,"ESBJERG V",null,null,null,null,null,null,null,null,null,null,null,null,null,null,null,null,null,null,null,"nej",0,0,0,2,5,0,29,0,0,0,"kr.",0,0]
[null,"05.294","UV_ÅMOSEPARKEN 3","ÅMOSEPARKEN 3","6710","ESBJERG V","MX4000",3184,"CSL00-771071","12V17Ah",2,"Nej","Ja","Nej","Nej",7,20,18,"Ja","Nej",1,0,76,19,0,"nej",2,4,0,0,0,0,0,0,0,0,"kr.",0,0]
[null,"05.295","UNGDOMSPENSIONEN TORVEGADE 46","TORVEGADE 46",6700,"ESBJERG ",null,null,null,null,null,null,null,null,null,null,null,null,null,null,null,null,null,null,null,"nej",0,0,0,1,3,0,14,3,3,6,"kr.",0,0]
[null,"05.303","UV_ASKEKRATTET","ASKEKRATTET 3","6705","ESBJERG Ø","Nittan Bra4000",520,"CSL00-939034","12V18Ah",2,"Nej","Ja","Nej","Nej",11,0,0,"Nej","Nej",1,0,23,9,0,"nej",0,0,0,0,0,0,0,0,0,0,"kr.",0,0]
[null,"05.307","CMU_HEROIN UDLEVERING","BAKKEVEJ 1","6700","ESBJERG","Delta Esser Compact",190,"CSL00-534506","12V12Ah",2,"Nej","Ja","Nej","Nej",2,6,0,"Nej","Ja",1,4,20,0,0,"nej",0,0,0,0,0,0,0,0,0,0,"kr.",0,0]
[null,"05.310","UNGECENTER RIBEGADE","RIBEGADE 139","6700","ESBJERG","Esser C/M",200,"CSL00-541746","12V12Ah",2,"Ja","Nej","Nej","Nej",1,4,0,"Nej","Nej",1,0,19,2,0,"nej",0,0,0,0,0,0,0,0,0,0,"kr.",0,0]
[null,"05.316","TROLDHØJ","SJELBORGGÅRDSVEJ 45",6710,"ESBJERG V",null,null,null,null,null,null,null,null,null,null,null,null,null,null,null,null,null,null,null,"nej",0,0,0,0,0,0,0,2,2,4,"kr.",0,0]
[null,"05.319","KLUB HVIDING","EGEBÆKVEJ 28A",6760,"RIBE",null,null,null,null,null,null,null,null,null,null,null,null,null,null,null,null,null,null,null,"nej",0,0,0,1,1,1,6,0,0,0,"kr.",0,0]
[null,"05.320","BØRNEHUS SYD PARAPLYEN ","LL. ROAGERVEJ 1B","6760","RIBE","Esser C/M",458,"CSL00-460512","12V24Ah",2,"Nej","Ja","Nej","Nej",5,4,0,"Nej","Ja",1,24,23,1,0,"nej",0,0,0,0,0,0,0,0,0,0,"kr.",0,0]
[null,"05.325","VOGNSBØL BØRNEHUS","GL. VARDEVEJ 97","6700","ESBJERG","Esser C/M",314,"CSL00-937389","12V12Ah",2,"Nej","Ja","Nej","Nej",4,2,0,"Nej","Nej",1,3,21,1,0,"nej",0,0,0,0,0,0,0,0,0,0,"kr.",0,0]
[null,"05.325","VOGNSBØL BØRNEHUS","GL. VARDEVEJ 97","6700","ESBJERG","Esser C/M",2093,"CSL00-955833","12V24Ah",2,"Nej","Ja","Nej","Nej",5,23,15,"Ja","Ja",1,52,56,0,0,"nej",0,0,0,0,0,0,0,0,0,0,"kr.",0,0]
[null,"05.326","TROLDEHULEN BØRNEUNI BRAMMING ","KJÆRGÅRDSVEJ 9B, HUNDERUP","6740","BRAMMING","Esser C/M",580,"CSL00-939793","12V12Ah",2,"Nej","Ja","Nej","Nej",11,5,0,"Nej","Ja",1,11,37,4,1,"nej",0,0,0,0,0,0,0,0,0,0,"kr.",0,0]
[null,"05.332","ENERGIEN BØRNEHUSENE TJÆREBORG ","EJLIF KROGAGERS VEJ 1","6731","TJÆREBORG","Esser C/M",1315,"06-51-01-1132","12V26Ah",2,"Nej","Ja","Nej","Ja",6,13,4,"Ja","Ja",1,56,83,6,0,"nej",0,0,0,0,0,0,0,0,0,0,"kr.",0,0]
[null,"05.337","GRØNLANDSPARKEN","GRØNLANDSPARKEN 298","6715","ESBJERG N","Esser C/M",1187,"06-52-01-0953","12V24Ah",2,"Ja","Ja","Nej","Ja",2,18,6,"Ja","Ja",1,6,71,2,0,"nej",0,0,0,0,0,0,0,0,0,0,"kr.",0,0]
[null,"05.338","GRØNINGEN GNISTEN BØRNEUNIVERSET","GRØNINGEN 4",6740,"BRAMMING",null,null,null,null,null,null,null,null,null,null,null,null,null,null,null,null,null,null,null,"nej",0,0,0,1,1,2,8,0,0,0,"kr.",0,0]
[null,"05.339","GAMMELBY STRANDVEJ 1","GAMMELBY STRANDVEJ 1","6700","ESBJERG","Delta Esser Compact",760,"CSL00-536186","12V7,2Ah",2,"Ja","Nej","Nej","Nej",7,3,2,"Ja","Nej",1,0,31,11,0,"nej",0,0,0,0,0,0,0,0,0,0,"kr.",0,0]
[null,"05.350","Bofællesskab Mosevej","Mosevej 74","6760","RIBE","Esser C/M",375,"CSL00-521744","12V12Ah",2,"Nej","Ja","Nej","Ja",3,6,2,"Ja","Nej",1,4,26,6,0,"nej",0,0,0,0,0,0,0,0,0,0,"kr.",0,0]
[null,"06.001","RÅDHUSET, ESBJERG","TORVEGADE 74","6700","ESBJERG","Terra Fire",5425,"06-11-06-4459","12V17Ah",2,"Ja","Nej","Ja","Nej",24,20,6,"Ja","Ja",1,0,135,2,0,"nej",15,72,0,1,74,0,0,4,6,8,"kr.",0,0]
[null,"06.036","KIRKEGADE 74","KIRKEGADE 74",6700,"ESBJERG",null,null,null,null,null,null,null,null,null,null,null,null,null,null,null,null,null,null,null,"nej",0,0,0,0,0,0,0,1,0,2,"kr.",0,0]
[null,"06.039","FYRPARKEN 11 (BL.A K&F)","FYRPARKEN 11",6710,"ESBJERG V",null,null,null,null,null,null,null,null,null,null,null,null,null,null,null,null,null,null,null,"nej",0,0,0,2,3,0,10,10,1,18,"kr.",0,0]
[null,"06.052","RÅDHUSET RIBE","GIØRTZ PLADS 2","6760","RIBE","Esser C/M",2050,"06-52-01-0358","12V26Ah",2,"Nej","Ja","Nej","Nej",21,16,12,"Ja","Ja",1,45,55,0,0,"nej",2,3,0,0,5,0,0,0,12,0,"kr.",0,0]
[null,"06.054","RIBE SUNDHEDSCENTER","TANGEVEJ 6-6K","6760","RIBE","Delta Esser Compact",1425,"06-11-08-0615","12V12Ah",2,"Nej","Nej","Nej","Nej",13,5,7,"Ja","Ja",1,10,82,6,0,"nej",0,0,0,0,0,0,0,0,0,0,"kr.",0,0]
[null,"06.056","SEMINARIEHUSET","SIMON HANSENS VEJ 1","6760","RIBE","Esser C/M",3086,"CSL00-939278","12V12Ah",2,"Nej","Nej","Nej","Ja",24,11,2,"Ja","Ja",1,53,145,3,0,"nej",8,44,0,0,14,7,30,10,9,15,"kr.",0,0]
[null,"647-49","Margrethegården","Skyttevej","6760","RIBE","Autronica BS320",4140,"CSL00-938961","12V25Ah",2,"Nej","Nej","Nej","Nej",30,0,102,"Ja","Ja",1,0,184,71,0,"nej",0,0,0,0,0,0,0,0,0,0,"kr.",0,0]
[null,"647-50","Plejecenteret Åhaven","Åhavevej","6760","RIBE","Autronica",2516,"CSL00-939340","12V18Ah",2,null,null,null,null,11,0,33,"Ja",null,1,0,79,44,0,"nej",0,0,0,0,0,0,0,0,0,0,"kr.",0,0]
[null,"693-03","Tjæreborg Ældrecenter (Skolevej 35 a-f )","Skolevej 35 a-f               ","6731","TJÆREBORG","Delta Esser compact",3500,"CSL00-300825","12V7,2Ah",4,"Nej","Ja","Nej","Nej",25,20,18,"Ja","Nej",1,23,150,14,0,"nej",0,0,0,0,0,0,0,0,0,0,"kr.",0,0]
[null,"693-05","Kornvangen 1-5 og 7A 1-7","Kornvangen","6705","ESBJERG Ø","Esser C/M",4521,"CSL00-938724","12V24Ah",4,"Nej","Ja","Nej","Nej",33,47,34,"Ja","Ja",1,26,256,61,0,"nej",0,0,0,0,0,0,0,0,0,0,"kr.",0,0]
[null,"693-12","Ved Skoven 41 a-h  (Skovbocenteret)","Ved Skoven 41 a-h","6700","ESBJERG","Delta Apollo",19180,"06-11-06-0359","12V12Ah",10,"Ja","Nej","Nej","Nej",49,31,22,"Ja","Ja",1,0,533,119,0,"nej",0,0,0,0,0,0,0,0,0,0,"kr.",0,0]
[null,"693-15","Ribegade 149-169, 177-223; Skolebakken; ","Ribegade","6705","ESBJERG Ø","Delta Apollo",2400,"CSL00-538741","12V7Ah",2,"Ja","Nej","Nej","Nej",18,8,5,"Ja","Nej",1,3,78,32,0,"nej",0,0,0,0,0,0,0,0,0,0,"kr.",0,0]
[null,"693-16","Ribegade 2","Ribegade","6700","ESBJERG","Delta Esser Compact",2763,"06-51-01-0906","?",4,"Ja","Ja","Nej","Nej",15,5,1,"Ja","Ja",1,51,116,14,0,"nej",0,0,0,0,0,0,0,0,0,0,"kr.",0,0]
[null,"693-18","Plejehjemmet Gjesing Midtby","Ulvevej ","6715","ESBJERG N","Delta Apollo",2900,"CSL00-755727","12V7,2Ah",4,"Ja","Nej","Nej","Nej",25,13,10,"Ja","Nej",1,0,101,77,0,"nej",0,0,0,0,0,0,0,0,0,0,"kr.",0,0]
[null,"693-22","Eriksensvej 2 Fovrfedt Ældrecenter","Eriksensvej 2","6700","ESBJERG","Delta Apolle",6332,"CSL00-750100","12V7,2Ah",4,"Ja","Nej","Nej","Nej",40,20,15,"Ja","Ja",1,0,286,99,0,"nej",0,0,0,0,0,0,0,0,0,0,"kr.",0,0]
[null,"693-23","Lyngvej 91-97, Lyngvejens Ældrecenter ","Lyngvej","6710","ESBJERG V","Delta Apolle",2300,"CSL00-727995","12V12Ah",2,"Nej","Nej","Nej","Nej",19,9,6,"Ja","Nej",1,0,115,34,0,"nej",0,0,0,0,0,0,0,0,0,0,"kr.",0,0]
[null,"693-23","Lyngvej 91-97, Lyngvejens Ældrecenter ","Lyngvej","6710","ESBJERG V","Delta Esser Compact",2634,"CSL00-748319","12V12Ah",4,"Ja","Nej","Nej","Nej",27,10,5,"Ja","Nej",1,0,99,46,0,"nej",0,0,0,0,0,0,0,0,0,0,"kr.",0,0]
[null,"693-25","Bytoften 55-65","Bytoften","6710","ESBJERG V","Delta Apollo",4600,"CSL00-747755","12V 9Ah",4,"Nej","Nej","Nej","Nej",36,20,20,"Ja","Ja",1,0,232,83,1,"nej",0,0,0,0,0,0,0,0,0,0,"kr.",0,0]
[null,"693-28","Fyrparken 35-41","Fyrparken ","6710","ESBJERG V","Delta Apollo",1600,"CSL00-751330","12V7,2Ah",2,"Nej","Nej","Nej","Nej",11,4,4,"Ja","Nej",1,0,83,25,0,"nej",0,0,0,0,0,0,0,0,0,0,"kr.",0,0]
[null,"693-29","Birkekrattet 4-6","Birkekrattet ","6705","ESBJERG Ø","Delta Apollo",1472,"CSL00-535951","12V7,2Ah",2,"Nej","Nej","Nej","Nej",9,6,3,"Ja","Nej",1,0,88,34,0,"nej",0,0,0,0,0,0,0,0,0,0,"kr.",0,0]
[null,"693-30","Sp. Møllevej 312, 314 og 318 Hedevangen)","Spangsbjerg Møllevej 312","6705","ESBJERG Ø","Delta Apollo",3729,"CSL00-521171","12V7,2Ah",6,"Ja","Nej","Nej","Nej",15,9,4,"Ja","Ja",1,6,234,60,0,"nej",0,0,0,0,0,0,0,0,0,0,"kr.",0,0]
[null,"693-32","Plejecenteret Solgården","Solgårdsvej","6740","BRAMMING","Esser FlexEs",14523,"CSL00-941852","12V26Ah",4,"Nej","Ja","Nej","Nej",63,33,64,"Ja","Ja",1,18,474,103,0,"nej",0,0,0,0,0,0,0,0,0,0,"kr.",0,0]
[null,"693-34","Plejecenter Østergården, Nørremarken 23","Nørremarken","6690","GØRDING","Esser FlexEs",5314,"CSL00-939333","12V26Ah",4,"Ja","Nej","Nej","Nej",39,20,17,"Ja","Ja",1,9,196,56,0,"nej",0,0,0,0,0,0,0,0,0,0,"kr.",0,0]
[null,"693-35","Sirius Seniorb0","Krebsehusene","6710","ESBJERG V","Esser FlexEs",10000,"06-52-01-1915","12V26Ah",4,"Nej","Ja","Nej","Nej",10,58,32,"Ja","Ja",1,60,312,108,0,"nej",0,0,0,0,0,0,0,0,0,0,"kr.",0,0]
[null,"693-37","Esehuset (fyrparken 19 lejl. 1-78)","Fyrparken","6710","ESBJERG V","Schneider Electric Esmi FX",7700,"06-11-01-0635","12V7,2Ah+12Ah+17Ah",7,"Ja","Nej","Nej","Nej",44,35,30,"Ja","Ja",1,13,274,84,0,"nej",0,0,0,0,0,0,0,0,0,0,"kr.",0,0]
[null,"693-40","Dagmargården","Gråbrødre Torv","6760","RIBE","Autronica BS310 AutroSafe 3",3200,"CSL00-748154","12V26Ah",2,"Nej","Nej","Nej","Nej",47,0,45,"Ja","Ja",1,0,105,31,0,"nej",0,0,0,0,0,0,0,0,0,0,"kr.",0,0]
[null,"693-42","Landlyst","Landlystvej","6715","ESBJERG N","Schneider Electric Esmi FX",5800,"CSL00-862473","12V17Ah",6,"Nej","Ja","Nej","Ja",43,54,25,"Ja","Nej",1,25,190,77,0,"nej",0,0,0,0,0,0,0,0,0,0,"kr.",0,0]
[null,"693-44","Farupvej 8C ","Farupvej ","6760","RIBE","Esser C/M",1511,"CSL00-937247","12V12Ah",2,"Nej","Ja","Nej","Nej",3,11,5,"Ja","Ja",1,4,71,16,0,"nej",0,0,0,0,0,0,0,0,0,0,"kr.",0,0]
[null,"693-45","Bøge Alle 14 HANDICAPBOLIGER RIBELUND","BØGE ALLE 14","6760","RIBE","Esser C/M",1850,"CSL00-941970","12V24Ah",2,"Nej","Nej","Nej","Nej",14,14,8,"Ja","Nej",1,0,86,26,0,"nej",0,0,0,0,0,0,0,0,0,0,"kr.",0,0]
[null,"693-46","BØGE ALLE 15*","BØGE ALLE 15","6760","RIBE","Esser C/M",1448,"CSL00-940078","12V24Ah",2,"Nej","Ja","Nej","Ja",9,11,3,"Ja","Nej",1,44,83,21,0,"nej",0,0,0,0,0,0,0,0,0,0,"kr.",0,0]
[null,"693-50","Fundamentet - Skæve boliger","Niels Bohrsvej 21","6700","ESBJERG","Esser C/M",860,"CSL00-392092","12V12Ah",2,"Nej","Ja","Nej","Nej",8,10,2,"Ja","Ja",1,19,46,1,0,"nej",0,0,0,0,0,0,0,0,0,0,"kr.",0,0]
[null,"Samlet pris for månedligt eftersyn på oplistede ejendomme  (overføres til forsiden)",null,null,null,null,null,null,null,null,null,null,null,null,null,null,null,null,null,null,null,null,null,null,null,null,null,null,null,null,null,null,null,null,null,null,null,null,{"$f":"SUM(AM30:AM171)","v":0}]
[null,"Samlet pris for årligt serviceeftersyn på oplistede ejendomme  (overføres til forsiden)",null,null,null,null,null,null,null,null,null,null,null,null,null,null,null,null,null,null,null,null,null,null,null,null,null,null,null,null,null,null,null,null,null,null,"kr.",{"$f":"SUM(AL30:AL172)","v":0}]

{"sheet":"Reparationer og udskiftninger","index":2,"n_rows":72,"n_cols":11,"rows_kept":72,"cut":false,"hidden":false,"merged":[[8,9,8,10],[1,1,1,6],[9,0,9,1],[30,0,30,1],[70,1,70,8],[7,0,7,3],[47,0,47,1],[8,7,8,8]]}
["½½","Tilbudsskema"]
[null,"UDBUD AF KONTRAKT OM SERVICE, VEDLIGEHOLD OG REPARATION AF BRANDTEKSNISKE ANLÆG"]
[]
[null,null,null,null,null,null,null,null,null,null,"J.nr. 334842"]
[null,"Samlet pris for reparationer og udskiftninger af nuværende anlæg inkl. alle udgifter som angivet i Udbudsbetingelser, pkt. 8.4.2"]
[]
[]
["Udskiftninger og reparationer"]
[null,"Ydelse","Varenummer","Fabrikat","Type","Mængde","Enhed","pris pr. enhed",null,"I alt"]
["Ved ABA-anlæg"]
[null,"Udskiftning af optisk detektor",null,null,null,60,"stk","kr.",0,"kr. ",{"$f":"I11*F11","v":0}]
[null,"Udskiftning af termodetektor",null,null,null,20,"stk","kr.",0,"kr. ",0]
[null,"Udskiftning af multikriteriedetektor",null,null,null,60,"stk","kr.",0,"kr. ",0]
[null,"Udskiftning af optisk detektor med indbygget lydgiver",null,null,null,10,"stk","kr.",0,"kr. ",0]
[null,"Udskiftning af termodetektor med indbygget lydgiver",null,null,null,10,"stk","kr.",0,"kr. ",0]
[null,"Udskiftning af multikriteriedetektor med indbygget lydgiver",null,null,null,30,"stk","kr.",0,"kr. ",0]
[null,"Udskiftning af detektorsokkel med indbygget lydgiver",null,null,null,20,"stk","kr.",0,"kr. ",0]
[null,"Udskiftning af udvendig blitz for redningsberedskabet",null,null,null,5,"stk","kr.",0,"kr. ",{"$f":"I18*F18","v":0}]
[null,"Udskiftning af blitz m. sirene",null,null,null,5,"stk","kr.",0,"kr. ",0]
[null,"Udskiftning af alarmtryk ",null,null,null,20,"stk","kr.",0,"kr. ",0]
[null,"Udskiftning af ekstern alarmgiver",null,null,null,5,"stk","kr.",0,"kr. ",0]
["Siemens-anlæg"]
[null,"Udskiftning af optisk detektor",null,null,null,5,"stk","kr.",0,"kr. ",{"$f":"F23*I23","v":0}]
[null,"Udskiftning af termodetektor",null,null,null,5,"stk","kr.",0,"kr. ",{"$f":"F24*I24","v":0}]
[null,"Udskiftning af multikriteriedetektor",null,null,null,5,"stk","kr.",0,"kr. ",0]
[null,"Udskiftning af detektorsokkel med indbygget lydgiver",null,null,null,5,"stk","kr.",0,"kr. ",0]
[null,"Udskiftning af udvendig blitz for redningsberedskabet",null,null,null,5,"stk","kr.",0,"kr. ",0]
[null,"Udskiftning af blitz m. sirene",null,null,null,5,"stk","kr.",0,"kr. ",0]
[null,"Udskiftning af alarmtryk ",null,null,null,5,"stk","kr.",0,"kr. ",0]
[null,"Udskiftning af ekstern alarmgiver",null,null,null,5,"stk","kr.",0,"kr. ",0]
["Ved stand alone og øvrige anlæg"]
[null,"Udskiftning af optisk detektor",null,null,null,5,"stk","kr.",0,"kr.",{"$f":"I32*F32","v":0}]
[null,"Udskiftning af termodetektor",null,null,null,5,"stk","kr.",0,"kr.",{"$f":"I33*F33","v":0}]
[null,"Udskiftning af multikriteriedetektor",null,null,null,5,"stk","kr.",0,"kr.",0]
[null,"Udskiftning af detektorsokkel med indbygget lydgiver",null,null,null,5,"stk","kr.",0,"kr.",0]
[null,"Udskiftning af udvendig blitz for redningsberedskabet",null,null,null,5,"stk","kr.",0,"kr.",0]
[null,"Udskiftning af blitz m. sirene",null,null,null,5,"stk","kr.",0,"kr.",0]
[null,"Udskiftning af alarmtryk ",null,null,null,5,"stk","kr.",0,"kr.",0]
[null,"Udskiftning af ekstern alarmgiver",null,null,null,5,"stk","kr.",0,"kr.",{"$f":"I39*F39","v":0}]
["Akkumulatorer"]
[null,"Udskiftning af 12V 1,3Ah",null,null,null,2,"stk","kr.",0,"kr.",{"$f":"I41*F41","v":0}]
[null,"Udskiftning af 12V 2,3Ah",null,null,null,5,"stk","kr.",0,"kr.",{"$f":"I42*F42","v":0}]
[null,"Udskiftning af 12V 7,0Ah",null,null,null,5,"stk","kr.",0,"kr.",{"$f":"I43*F43","v":0}]
[null,"Udskiftning af 12 V 9,0Ah",null,null,null,5,"stk","kr.",0,"kr.",0]
[null,"Udskiftning af 12V 12Ah",null,null,null,5,"stk","kr.",0,"kr.",0]
[null,"Udskiftning af 12V 17Ah",null,null,null,2,"stk","kr.",0,"kr.",0]
[null,"Udskiftning af 12V 28Ah",null,null,null,2,"stk","kr.",0,"kr.",0]
["Øvrige ydelser"]
[null,"Tilretning af O-planer m dwg",null,null,null,70,"stk","kr.",0,"kr.",{"$f":"I49*F49","v":0}]
[null,"Nye O-planer m dwg",null,null,null,30,"stk","kr.",0,"kr.",{"$f":"I50*F50","v":0}]
[null,"Tilretning af O-planer uden dwg",null,null,null,10,"stk","kr.",0,"kr.",0]
[null,"Tilkobling af andre brandsikringstekniske anlæg",null,null,null,3,"stk","kr.",0,"kr.",0]
[null,"Udarbejdelse af DKV-plan på eksisterende anlæg",null,null,null,2,"stk","kr.",0,"kr.",0]
[null,"IP-gateway - Nyanlæg/eksisterende anlæg",null,null,null,1,"stk","kr.",0,"kr.",0]
[null,"Tilslutning af signaler til kaldeanlæg",null,null,null,1,"stk","kr.",0,"kr.",0]
[null,"Etablering af kombirelæ (kabler afregnes separat)",null,null,null,2,"stk","kr.",0,"kr.",0]
[null,"Levering af beskyttelsesgitter for detektor",null,null,null,1,"stk","kr.",0,"kr.",0]
[null,"Levering og montering af beskyttelsesgitter for detektor",null,null,null,1,"stk","kr.",0,"kr.",0]
[null,"Levering af glas til alarmtryk",null,null,null,1,"stk","kr.",0,"kr.",0]
[null,"Levering og montering af glas til alarmtryk",null,null,null,75,"stk","kr.",0,"kr.",0]
[null,"Levering og montering af beskyttelselåge brandtryk",null,null,null,10,"stk","kr.",0,"kr.",0]
[null,"Levering og montering af dementafskærmning til brandtryk",null,null,null,5,"stk","kr.",0,"kr.",0]
[null,"Levering af dement afskærmning til brandtryk",null,null,null,5,"stk","kr.",0,"kr.",0]
[null,"Levering og installering af I/O-enhed m. 1 relæ ",null,null,null,10,"stk","kr.",0,"kr.",0]
[null,"Levering og installering af I/O-enhed m. 3 relæer",null,null,null,10,"stk","kr.",0,"kr.",0]
[null,"Levering og montering af fritløbspumpe (svingfri)",null,null,null,2,"stk","kr.",0,"kr.",0]
[null,"Levering og montering af dørpumpe",null,null,null,2,"stk","kr.",0,"kr.",0]
[null,"Levering og montering af dørlukker med fasthold",null,null,null,2,"stk","kr.",0,"kr.",0]
[null,"Levering og montering af aflåst skab til central",null,null,null,1,"stk","kr.",0,"kr.",0]
[null,"Levering og installering af udløsetryk til ABDL dør, hvor der i forvejen ikke er et ",null,null,null,5,"stk","kr.",0,"kr.",0]
[null,"I alt - samlet tilbudssum på udførelse af reparationer og udskiftninger (overføres til forsiden)",null,null,null,null,null,null,null,"kr. ",{"$f":"SUM(K11:K70)","v":0}]
[null,""]

{"sheet":"Nye anlæg","index":3,"n_rows":58,"n_cols":11,"rows_kept":58,"cut":false,"hidden":false,"merged":[[57,1,57,8],[1,0,2,4],[14,0,14,3],[15,7,15,8],[15,9,15,10]]}
["Tilbudsskema"]
["UDBUD AF KONTRAKT OM SERVICE, VEDLIGEHOLD OG REPARATION AF BRANDTEKNISKE ANLÆG"]
[]
[]
[null,null,null,null,"J.nr. 334842"]
[]
[null,"Nye anlæg"]
[]
[]
[]
[null,"I alt - samlet tilbudssum for nye anlæg (overføres til forsiden)","kr",{"$f":"K58","v":0}]
[]
[]
[]
["Pris på levering og montering af og i forbindelse med nye anlæg, Stk priser inkl. alle udgifter som angivet i Udbudsbetingelser, pkt. 8.4.3"]
[null,"Ydelse","Varenummer","Fabrikat","Type","Mængde","Enhed","pris pr. enhed",null,"I alt"]
[null,"ABA-central - Anlæg A - til mindre institutioner med O-plansskab",null,null,null,1,"stk. ","kr.",0,"kr.",{"$f":"I17*F17","v":0}]
[null,"ABA-central - Anlæg B - til lidt større institutioner med O-plansskab",null,null,null,2,"stk. ","kr. ",0,"kr. ",{"$f":"I18*F18","v":0}]
[null,"ABA-central - Anlæg C - til store institutioner med O-plansskab",null,null,null,1,"stk. ","kr. ",0,"kr. ",0]
[null,"Transmission type 2. 2 styk worldsimkort m. roaming og lan forbindelse",null,null,null,1,"stk. ","kr. ",0,"kr. ",0]
[null,"Transmission type 2a. 3 styk worldsimkort m roaming, ren radio forbindelse uden lan",null,null,null,1,"stk. ","kr. ",0,"kr. ",0]
[null,"Levering og montering af nøgleboks",null,null,null,4,"stk. ","kr.",0,"kr. ",0]
[null,"Levering og montering af termodetektor ",null,null,null,50,"stk. ","kr. ",0,"kr. ",0]
[null,"Levering og montering af multikriteriedetektor ",null,null,null,25,"stk. ","kr. ",0,"kr. ",0]
[null,"Levering og montering af termodetektor med indbygget lydgiver ",null,null,null,50,"stk. ","kr. ",0,"kr. ",0]
[null,"Levering og montering af termodetektor med indbygget tale",null,null,null,10,"stk. ","kr. ",0,"kr. ",0]
[null,"Levering og montering af multikriteriedetektor med indbygget lydgiver ",null,null,null,50,"stk. ","kr. ",0,"kr. ",0]
[null,"Levering og montering af multikriteriedetektor med indbygget tale",null,null,null,25,"stk. ","kr. ",0,"kr. ",0]
[null,"Levering og montering af skilt/skilteplade for markering af varsling på detektor",null,null,null,50,"stk. ","kr. ",0,"kr. ",0]
[null,"Levering og montering af BRAND label på Detektor",null,null,null,50,"stk. ","kr. ",0,"kr. ",0]
[null,"Levering og montering af BRAND label på Detektor med adrsserbar tale",null,null,null,25,"stk. ","kr. ",0,"kr. ",0]
[null,"Levering og montering af udvendig blitz for redningsberedskabet",null,null,null,10,"stk. ","kr. ",0,"kr. ",{"$f":"I32*F32","v":0}]
[null,"Levering og montering af blitz m. sirene",null,null,null,10,"stk. ","kr. ",0,"kr. ",0]
[null,"Levering og montering af adresserbar EN54-3/23 godkendt Blitz og Tale",null,null,null,5,"stk. ","kr. ",0,"kr. ",0]
[null,"Levering og montering af alarmtryk inkl. 10 m kabel",null,null,null,25,"stk. ","kr. ",0,"kr. ",0]
[null,"Levering og montering af ekstern alarmgiver inkl. 10 m kabel",null,null,null,5,"stk. ","kr. ",0,"kr. ",0]
[null,"Levering og montering af kabel i eksisterende føringsveje",null,null,null,100,"meter","kr. ",0,"kr. ",0]
[null,"Levering og montering af kabel i ny føringsvej over loft",null,null,null,100,"meter","kr. ",0,"kr. ",0]
[null,"Levering og montering af kabel i ny føringsvej i kabelkanal på træ/gips",null,null,null,500,"meter","kr. ",0,"kr. ",0]
[null,"Levering og montering af kabel i ny føringsvej i kabelkanal på letbeton",null,null,null,500,"meter","kr. ",0,"kr. ",0]
[null,"Levering og montering af kabel i ny føringsvej i kabelkanal på murværk",null,null,null,500,"meter","kr. ",0,"kr. ",0]
[null,"Levering og montering af kabel i ny føringsvej i kabelkanal på beton",null,null,null,500,"meter","kr. ",0,"kr. ",0]
[null,"Levering og montering af termodetektorkabel oplagt i stålrør",null,null,null,50,"meter","kr. ",0,"kr. ",0]
[null,"Tætning af brandgennemføring ved brandcelle adskillelse",null,null,null,30,"stk. ","kr. ",0,"kr. ",0]
[null,"Netforsyning, komplet stærkstrømsinstallation fra eksisterende el-tavle til centraludstyr, inkl. nødvendige ændringer i tavle.",null,null,null,4,"stk. ","kr. ",0,"kr. ",0]
[null,"Levering og montering af kombiafbryder",null,null,null,2,"stk. ","kr. ",0,"kr. ",0]
[null,"Levering og montering af korrespondance nøgleafbryder med sløjfe klemme ",null,null,null,4,"stk. ","kr. ",0,"kr. ",0]
[null,"Levering og installering af I/O-enhed m. 1 relæ ",null,null,null,10,"stk. ","kr. ",0,"kr. ",0]
[null,"Levering og installering af I/O-enhed m. 3 relæer",null,null,null,10,"stk. ","kr. ",0,"kr. ",0]
[null,"Levering og montering af aflåst skab til central",null,null,null,1,"stk","kr.",0,"kr.",0]
[null,"Tilslutning af nye ABDL anlæg tilkoblet ABA anlægget (ekskl. dørpumpe m.v.)",null,null,null,10,"stk. ","kr. ",0,"kr. ",0]
[null,"Tilslutning af eksisterende ABDL anlæg til ABA anlægget, inkl. I/O moduler, som strømforsynes fra egne kombirelæer",null,null,null,2,"stk. ","kr. ",0,"kr. ",0]
[null,"Levering og installering af komplet ABDL anlæg (ekskl. dørpumpe m.v.)",null,null,null,2,"stk. ","kr. ",0,"kr. ",0]
[null,"Levering og installering af ABDL anlæg tilkoblet ABA anlægget (ekskl. dørpumpe m.v.)",null,null,null,2,"stk. ","kr. ",0,"kr. ",0]
[null,"Færdigmelding til akkrediteret inspektionsvirksomhed",null,null,null,4,"stk. ","kr. ",0,"kr. ",0]
[null,"Udarbejdelse af DKV-plan",null,null,null,4,"stk. ","kr. ",0,"kr. ",0]
[null,"Styrings matrix",null,null,null,4,"stk. ","kr. ",0,"kr. ",0]
[null,"I alt - samlet pris på levering og montering ifm. Nye anlæg",null,null,null,null,null,null,null,"kr. ",{"$f":"SUM(K17:K57)","v":0}]

{"sheet":"Timepriser","index":4,"n_rows":34,"n_cols":7,"rows_kept":34,"cut":false,"hidden":false,"merged":[[17,0,17,1],[22,0,22,1],[27,0,27,1],[1,0,2,6]]}
["Tilbudsskema"]
["UDBUD AF KONTRAKT OM SERVICE, VEDLIGEHOLD OG REPARATION AF BRANDTEKNISKE ANLÆG"]
[]
[]
[null,null,null,null,null,null,"J.nr. 334842"]
[]
[null,"Timepriser inkl. alle udgifter som angivet i Udbudsbetingelser, pkt. 8.4.4"]
[]
[]
[]
[null,"Ydelse","Mængde","Enhed","pris pr. enhed",null,"I alt"]
[]
["Projektleder"]
[null,"Alm. Arbejdstimer man-fre, 7-18",10,"timer",0,"kr. ",{"$f":"E14*C14","v":0}]
[null,"Arbejdstimer man-fre 18-7, lør",1,"timer",0,"kr. ",{"$f":"E15*C15","v":0}]
[null,"Arbejdstimer søn- og helligdage",1,"timer",0,"kr. ",0]
[]
["Kvalificeret tekniker"]
[null,"Alm. Arbejdstimer man-fre, 7-18",50,"timer",0,"kr. ",0]
[null,"Arbejdstimer man-fre 18-7, lør",5,"timer",0,"kr. ",0]
[null,"Arbejdstimer søn- og helligdage",5,"timer",0,"kr. ",0]
[]
["Lærling"]
[null,"Arbejdstimer man-fre, 7-18",30,"timer",0,"kr. ",0]
[null,"Arbejdstimer man-fre 18-7, lør",3,"timer",0,"kr. ",0]
[null,"Arbejdstimer søn- og helligdage",3,"timer",0,"kr. ",0]
[]
["Andre ydelser"]
[null,"Udkaldstillæg (uden for alm. arbejdstimer)",5,"stk.",0,"kr. ",0]
[null,"Tilkald pga. forholdsordre påtegning",20,"stk.",0,"kr. ",0]
[null,"Opstartsgebyr (kun for Reparationer og udskiftninger)",20,"stk.",0,"kr. ",0]
[]
[]
["I alt - samlede tilbudssum for timepriser (overføres til forsiden)",null,null,null,null,"kr. ",{"$f":"SUM(G13:G33)","v":0}]